[Event "FIDE Online Olympiad Top Division 2020"]
[Site "Online"]
[Date "2020.08.24"]
[Round "?"]
[White "Schulze, Lara"]
[Black "Makwena, Christine"]
[Result "1-0"]
[ECO "C05"]
[WhiteElo "2299"]
[BlackElo "1087"]
[Annotator "ChessBase"]
[PlyCount "179"]
[EventDate "2020.08.21"]
[TimeControl "900+5"]

1. e4 {[%emt 0:00:04]} e6 {[%emt 0:00:04]} 2. d4 {[%emt 0:00:02]} d5 {[%emt 0:00:04]} 3. Nd2 {[%emt 0:00:01]} Nf6 {[%emt 0:00:04]} 4. e5 {[%emt 0:00:02]} Nfd7 {[%emt 0:00:03]} 5. c3 {[%emt 0:00:04]} c5 {[%emt 0:00:04]} 6. f4 {[%emt 0:00:05]} Nc6 {[%emt 0:00:07]} 7. Ndf3 {[%emt 0:00:03]} cxd4 {[%emt 0:01:12]} 8. cxd4 {[%emt 0:00:06]} a5 {[%emt 0:00:04]} 9. Bd3 {[%emt 0:00:30]} a4 {[%emt 0:00:12]} 10. Ne2 {[%emt 0:00:39]} a3 {[%emt 0:01:00]} 11. b3 {[%emt 0:00:14]} Nb4 {[%emt 0:00:14]} 12. Bb1 {[%emt 0:01:00]} Nb6 {[%emt 0:00:26]} 13. O-O {[%emt 0:00:16]} Bd7 {[%emt 0:00:07]} 14. Nc3 {[%emt 0:04:22]} Qc7 {[%emt 0:01:17]} 15. Bd2 {[%emt 0:00:19]} Nc8 {[%emt 0:02:12]} 16. Qe2 {[%emt 0:01:12]} Qb6 {[%emt 0:00:19]} 17. Kh1 {[%emt 0:00:45]} h5 {[%emt 0:01:02]} 18. Qf2 {[%emt 0:02:07]} Ne7 {[%emt 0:00:56]} 19. Ne1 {[%emt 0:01:21]} Nf5 {[%emt 0:01:58]} 20. Bxf5 {[%emt 0:00:46]} exf5 {[%emt 0:00:04]} 21. Be3 {[%emt 0:00:26]} Rc8 {[%emt 0:01:10]} 22. Qd2 {[%emt 0:00:10]} Qa6 {[%emt 0:00:43]} 23. Rf3 {[%emt 0:01:02]} Rh6 {[%emt 0:00:44]} 24. Bf2 {[%emt 0:00:48]} Qa5 {[%emt 0:01:29]} 25. Ne2 {[%emt 0:00:19]} Nc6 {[%emt 0:00:14]} 26. Qxa5 {[%emt 0:00:02]} Nxa5 {[%emt 0:00:03]} 27. Nc3 {[%emt 0:00:09]} Be6 {[%emt 0:00:32]} 28. Nc2 {[%emt 0:00:03]} Nc6 {[%emt 0:00:11]} 29. Be1 {[%emt 0:00:07]} Be7 {[%emt 0:00:21]} 30. Kg1 {[%emt 0:00:02]} Kd7 {[%emt 0:00:13]} 31. Kf1 {[%emt 0:00:04]} Na7 {[%emt 0:00:03]} 32. Ke2 {[%emt 0:00:06]} b5 {[%emt 0:00:03]} 33. b4 {[%emt 0:00:07]} Rhh8 {[%emt 0:00:04]} 34. Rb1 {[%emt 0:00:03]} Rc4 {[%emt 0:00:04]} 35. Ne3 {[%emt 0:00:10]} Rc7 {[%emt 0:00:05]} 36. Rb3 {[%emt 0:00:07]} Rhc8 {[%emt 0:00:04]} 37. Nc2 {[%emt 0:00:04]} Rc4 {[%emt 0:00:10]} 38. Rxa3 {[%emt 0:00:01]} R8c7 {[%emt 0:00:05]} 39. Rb3 {[%emt 0:00:04]} R4c6 {[%emt 0:00:04]} 40. a3 {[%emt 0:00:02]} Ra6 {[%emt 0:00:03]} 41. Kd3 {[%emt 0:00:04]} Rac6 {[%emt 0:00:03]} 42. Rf2 {[%emt 0:00:05]} Ra6 {[%emt 0:00:02]} 43. Ne3 {[%emt 0:00:04]} Kc6 {[%emt 0:00:06]} 44. Rc2 {[%emt 0:00:03]} Kd7 {[%emt 0:00:11]} 45. Ncxd5 {[%emt 0:00:07]} Rxc2 {[%emt 0:00:03]} 46. Kxc2 {[%emt 0:00:00]} Nc6 {[%emt 0:00:11]} 47. Kd3 {[%emt 0:00:03]} Ra7 {[%emt 0:00:11]} 48. Rc3 {[%emt 0:00:02]} Ra6 {[%emt 0:00:07]} 49. Nxe7 {[%emt 0:00:07]} Nxe7 {[%emt 0:00:03]} 50. Bh4 {[%emt 0:00:08]} Nd5 {[%emt 0:00:04]} 51. Nxd5 {[%emt 0:00:03]} Bxd5 {[%emt 0:00:03]} 52. Bf2 {[%emt 0:00:06]} Bc4+ {[%emt 0:00:02]} 53. Ke3 {[%emt 0:00:03]} Ra7 {[%emt 0:00:03]} 54. Be1 {[%emt 0:00:04]} Rc7 {[%emt 0:00:04]} 55. Bd2 {[%emt 0:00:06]} Rb7 {[%emt 0:00:03]} 56. Kf2 {[%emt 0:00:06]} Ke6 {[%emt 0:00:03]} 57. a4 {[%emt 0:00:10]} Kd5 {[%emt 0:00:05]} 58. axb5 {[%emt 0:00:11]} Rxb5 {[%emt 0:00:04]} 59. Ra3 {[%emt 0:00:02]} Kxd4 {[%emt 0:00:07]} 60. Ra7 {[%emt 0:00:04]} Be6 {[%emt 0:00:04]} 61. Rc7 {[%emt 0:00:10]} Kd5 {[%emt 0:00:05]} 62. Ke3 {[%emt 0:00:06]} g6 {[%emt 0:00:09]} 63. Ra7 {[%emt 0:00:04]} Kc6 {[%emt 0:00:03]} 64. Ra6+ {[%emt 0:00:05]} Kd5 {[%emt 0:00:03]} 65. Rd6+ {[%emt 0:00:03]} Kc4 {[%emt 0:00:02]} 66. Rd4+ {[%emt 0:00:05]} Kb3 {[%emt 0:00:03]} 67. Rd8 {[%emt 0:00:02]} Kc4 {[%emt 0:00:03]} 68. Rd6 {[%emt 0:00:06]} Kb3 {[%emt 0:00:03]} 69. Rc6 {[%emt 0:00:04]} Ka4 {[%emt 0:00:05]} 70. Rc7 {[%emt 0:00:07]} Kb3 {[%emt 0:00:03]} 71. g3 {[%emt 0:00:06]} Rb6 {[%emt 0:00:14]} 72. Kd4 {[%emt 0:00:07]} Ka4 {[%emt 0:00:07]} 73. Ra7+ {[%emt 0:00:05]} Kb5 {[%emt 0:00:03]} 74. Ra5+ {[%emt 0:00:03]} Kc6 {[%emt 0:00:05]} 75. Rc5+ {[%emt 0:00:01]} Kd7 {[%emt 0:00:09]} 76. b5 {[%emt 0:00:09]} Rb7 {[%emt 0:00:09]} 77. Ba5 {[%emt 0:00:06]} Ke8 {[%emt 0:00:07]} 78. Bc7 {[%emt 0:00:08]} Kd7 {[%emt 0:00:04]} 79. b6 {[%emt 0:00:03]} Bb3 {[%emt 0:00:12]} 80. Ra5 {[%emt 0:00:04]} Kc6 {[%emt 0:00:04]} 81. Rc5+ {[%emt 0:00:05]} Kd7 {[%emt 0:00:02]} 82. Rc3 {[%emt 0:00:01]} Be6 {[%emt 0:00:03]} 83. Kc5 {[%emt 0:00:03]} Ba2 {[%emt 0:00:07]} 84. Rd3+ {[%emt 0:00:04]} Ke7 {[%emt 0:00:05]} 85. Kc6 {[%emt 0:00:10]} Rxc7+ {[%emt 0:00:09]} 86. bxc7 {[%emt 0:00:05]} Be6 {[%emt 0:00:04]} 87. Rd8 {[%emt 0:00:04]} f6 {[%emt 0:00:10]} 88. exf6+ {[%emt 0:00:04]} Kxf6 {[%emt 0:00:03]} 89. c8=Q {[%emt 0:00:01]} Bxc8 {[%emt 0:00:03]} 90. Rxc8 {[%emt 0:00:00]} 1-0

[Event "FIDE Online Olympiad Top Division 2020"]
[Site "Online"]
[Date "2020.08.22"]
[Round "?"]
[White "Melamed, Tatjana"]
[Black "Hou, Yifan"]
[Result "1/2-1/2"]
[ECO "B22"]
[WhiteElo "2298"]
[BlackElo "2621"]
[Annotator "ChessBase"]
[PlyCount "101"]
[EventDate "2020.08.21"]
[SourceTitle "playchess.com"]
[Source "ChessBase"]
[SourceQuality "1"]
[TimeControl "900+5"]

1. e4 {[%emt 0:00:02]} c5 {[%emt 0:00:02]} 2. Nf3 {[%emt 0:00:04]} e6 {[%emt 0:00:02]} 3. c3 {[%emt 0:00:01]} d5 {[%emt 0:00:04]} 4. exd5 {[%emt 0:00:03]} Qxd5 {[%emt 0:00:01]} 5. d4 {[%emt 0:00:02]} Nf6 {[%emt 0:00:00]} 6. Be2 {[%emt 0:00:04]} Be7 {[%emt 0:00:05]} 7. O-O {[%emt 0:00:06]} O-O {[%emt 0:00:02]} 8. Na3 {[%emt 0:00:14]} a6 {[%emt 0:03:04]} 9. Nc4 {[%emt 0:00:07]} Nbd7 {[%emt 0:00:02]} 10. Nfe5 {[%emt 0:02:22]} cxd4 {[%emt 0:02:25]} 11. Bf3 {[%emt 0:00:44]} Qc5 {[%emt 0:00:18]} 12. cxd4 {[%emt 0:00:07]} Qc7 {[%emt 0:00:02]} 13. Bf4 {[%emt 0:00:25]} Nxe5 {[%emt 0:00:27]} 14. Nxe5 {[%emt 0:00:07]} Qb6 {[%emt 0:00:05]} 15. Nc4 {[%emt 0:01:23]} Qd8 {[%emt 0:00:08]} 16. Qb3 {[%emt 0:00:52]} Bd7 {[%emt 0:02:34]} 17. Bxb7 {[%emt 0:01:33]} Ra7 {[%emt 0:00:05]} 18. Bf3 {[%emt 0:00:03]} Bb5 {[%emt 0:02:18]} 19. Rfd1 {[%emt 0:00:04]} Nd5 {[%emt 0:00:07]} 20. Be5 {[%emt 0:01:38]} Bc6 {[%emt 0:00:35]} 21. Rac1 {[%emt 0:00:54]} Rb7 {[%emt 0:00:51]} 22. Qc2 {[%emt 0:00:45]} h6 {[%emt 0:00:38]} 23. a3 {[%emt 0:01:14]} Bg5 {[%emt 0:00:22]} 24. Rb1 {[%emt 0:00:16]} Rd7 {[%emt 0:00:02]} 25. h3 {[%emt 0:00:55]} Ba8 {[%emt 0:00:19]} 26. Qa4 {[%emt 0:00:12]} Bb7 {[%emt 0:01:01]} 27. Qa5 {[%emt 0:00:11]} Qa8 {[%emt 0:00:08]} 28. Rd3 {[%emt 0:00:14]} Bd8 {[%emt 0:00:10]} 29. Qd2 {[%emt 0:00:14]} Bc6 {[%emt 0:00:12]} 30. Ne3 {[%emt 0:00:31]} Bg5 {[%emt 0:00:10]} 31. Qe2 {[%emt 0:00:29]} Bxe3 {[%emt 0:00:17]} 32. Bxd5 {[%emt 0:00:19]} Bxf2+ {[%emt 0:00:35]} 33. Qxf2 {[%emt 0:00:04]} Bxd5 {[%emt 0:00:00]} 34. Rg3 {[%emt 0:00:28]} f6 {[%emt 0:00:06]} 35. Bf4 {[%emt 0:00:03]} Kh7 {[%emt 0:00:08]} 36. Re1 {[%emt 0:00:03]} Qc6 {[%emt 0:00:02]} 37. Rc3 {[%emt 0:00:03]} Qb6 {[%emt 0:00:05]} 38. Kh2 {[%emt 0:00:12]} Kg8 {[%emt 0:00:05]} 39. b4 {[%emt 0:00:05]} e5 {[%emt 0:00:04]} 40. Be3 {[%emt 0:00:04]} Qd6 {[%emt 0:00:03]} 41. Kg1 {[%emt 0:00:16]} e4 {[%emt 0:00:13]} 42. Rec1 {[%emt 0:00:04]} g5 {[%emt 0:00:12]} 43. Qf5 {[%emt 0:00:03]} Rg7 {[%emt 0:00:11]} 44. Rc8 {[%emt 0:00:04]} Bb7 {[%emt 0:00:07]} 45. Rxf8+ {[%emt 0:00:05]} Kxf8 {[%emt 0:00:01]} 46. d5 {[%emt 0:00:04]} Kg8 {[%emt 0:00:06]} 47. Qxe4 {[%emt 0:00:09]} Re7 {[%emt 0:00:07]} 48. Qg6+ {[%emt 0:00:02]} Rg7 {[%emt 0:00:01]} 49. Qe4 {[%emt 0:00:02]} Re7 {[%emt 0:00:01]} 50. Qg6+ {[%emt 0:00:01]} Rg7 {[%emt 0:00:01]} 51. Qe4 {[%emt 0:00:11]} 1/2-1/2

[Event "FIDE Online Olympiad Top Division 2020"]
[Site "Online"]
[Date "2020.08.21"]
[Round "?"]
[White "Parhamov"]
[Black "rasmussvane"]
[Result "0-1"]
[ECO "B15"]
[WhiteElo "2289"]
[BlackElo "2481"]
[Annotator "ChessBase"]
[PlyCount "118"]
[EventDate "2020.08.21"]
[SourceTitle "playchess.com"]
[Source "ChessBase"]
[SourceQuality "1"]
[TimeControl "900+5"]

1. e4 {[%emt 0:00:05]} c6 {[%emt 0:00:01]} 2. d4 {[%emt 0:00:05]} d5 {[%emt 0:00:01]} 3. Nc3 {[%emt 0:00:02]} dxe4 {[%emt 0:00:05]} 4. Nxe4 {[%emt 0:00:00]} Nf6 {[%emt 0:00:01]} 5. Nxf6+ {[%emt 0:00:02]} exf6 {[%emt 0:00:00]} 6. c3 {[%emt 0:00:02]} Bd6 {[%emt 0:00:02]} 7. Bd3 {[%emt 0:00:01]} O-O {[%emt 0:00:00]} 8. Ne2 {[%emt 0:00:01]} Re8 {[%emt 0:00:01]} 9. O-O {[%emt 0:00:01]} Na6 {[%emt 0:00:27]} 10. Bf4 {[%emt 0:00:53]} Nc7 {[%emt 0:00:11]} 11. Qd2 {[%emt 0:00:07]} Be6 {[%emt 0:01:04]} 12. Rfe1 {[%emt 0:00:07]} Nd5 {[%emt 0:00:45]} 13. Bg3 {[%emt 0:00:17]} g6 {[%emt 0:00:35]} 14. a3 {[%emt 0:00:33]} Bxg3 {[%emt 0:01:01]} 15. hxg3 {[%emt 0:00:10]} Qd6 {[%emt 0:01:01]} 16. c4 {[%emt 0:01:38]} Ne7 {[%emt 0:00:04]} 17. Qc3 {[%emt 0:00:38]} Rad8 {[%emt 0:00:12]} 18. Rad1 {[%emt 0:00:13]} Bg4 {[%emt 0:00:38]} 19. f3 {[%emt 0:00:23]} Bf5 {[%emt 0:00:07]} 20. Be4 {[%emt 0:00:32]} h5 {[%emt 0:00:53]} 21. b4 {[%emt 0:02:46]} b6 {[%emt 0:02:25]} 22. Kf2 {[%emt 0:01:12]} Kg7 {[%emt 0:00:08]} 23. a4 {[%emt 0:00:02]} Qc7 {[%emt 0:00:54]} 24. Nf4 {[%emt 0:02:11]} h4 {[%emt 0:01:38]} 25. Ne2 {[%emt 0:00:01]} Rh8 {[%emt 0:00:04]} 26. Rh1 {[%emt 0:00:25]} hxg3+ {[%emt 0:00:06]} 27. Nxg3 {[%emt 0:00:01]} Be6 {[%emt 0:00:12]} 28. Ne2 {[%emt 0:00:23]} Qd6 {[%emt 0:00:12]} 29. b5 {[%emt 0:01:20]} c5 {[%emt 0:00:19]} 30. d5 {[%emt 0:00:08]} Bd7 {[%emt 0:00:11]} 31. Qe3 {[%emt 0:00:10]} Rde8 {[%emt 0:00:27]} 32. Rxh8 {[%emt 0:00:45]} Rxh8 {[%emt 0:00:02]} 33. Qf4 {[%emt 0:00:00]} Nc8 {[%emt 0:00:03]} 34. Ra1 {[%emt 0:00:38]} Qe5 {[%emt 0:00:35]} 35. Qxe5 {[%emt 0:00:06]} fxe5 {[%emt 0:00:00]} 36. a5 {[%emt 0:00:00]} Nd6 {[%emt 0:00:02]} 37. Bd3 {[%emt 0:00:01]} Bf5 {[%emt 0:00:06]} 38. Ke3 {[%emt 0:01:06]} Rh4 {[%emt 0:00:22]} 39. axb6 {[%emt 0:00:33]} axb6 {[%emt 0:00:00]} 40. Ra4 {[%emt 0:00:06]} e4 {[%emt 0:00:58]} 41. fxe4 {[%emt 0:00:01]} Bxe4 {[%emt 0:00:02]} 42. g3 {[%emt 0:00:29]} Rg4 {[%emt 0:00:03]} 43. Bxe4 {[%emt 0:00:07]} Rxe4+ {[%emt 0:00:00]} 44. Kd3 {[%emt 0:00:01]} Rg4 {[%emt 0:00:27]} 45. Kc3 {[%emt 0:00:11]} Nxb5+ {[%emt 0:00:05]} 46. Kb3 {[%emt 0:00:06]} Nd6 {[%emt 0:00:08]} 47. Nc3 {[%emt 0:00:09]} Rxg3 {[%emt 0:00:05]} 48. Kc2 {[%emt 0:00:01]} Rg4 {[%emt 0:00:06]} 49. Kb3 {[%emt 0:00:01]} Kf6 {[%emt 0:00:22]} 50. Ra6 {[%emt 0:00:02]} Nxc4 {[%emt 0:00:07]} 51. Nb5 {[%emt 0:00:12]} Ke5 {[%emt 0:00:13]} 52. Ra7 {[%emt 0:00:01]} Nd6 {[%emt 0:00:19]} 53. Nc7 {[%emt 0:00:14]} Rg3+ {[%emt 0:00:04]} 54. Kc2 {[%emt 0:00:01]} c4 {[%emt 0:00:06]} 55. Ra1 {[%emt 0:00:04]} f5 {[%emt 0:00:32]} 56. Re1+ {[%emt 0:00:06]} Ne4 {[%emt 0:00:02]} 57. Rd1 {[%emt 0:00:03]} Rc3+ {[%emt 0:00:09]} 58. Kb2 {[%emt 0:00:01]} Rd3 {[%emt 0:00:09]} 59. Rg1 {[%emt 0:00:02]} g5 {[%emt 0:00:02]} 0-1

[Event "FIDE Online Olympiad Top Division 2020"]
[Site "Online"]
[Date "2020.08.22"]
[Round "?"]
[White "Schulze, Lara"]
[Black "Batsiashvili, Nino"]
[Result "0-1"]
[ECO "C54"]
[WhiteElo "2288"]
[BlackElo "2504"]
[Annotator "ChessBase"]
[PlyCount "92"]
[EventDate "2020.08.21"]
[SourceTitle "playchess.com"]
[Source "ChessBase"]
[SourceQuality "1"]
[TimeControl "900+5"]

1. e4 {[%emt 0:00:03]} e5 {[%emt 0:00:02]} 2. Nf3 {[%emt 0:00:02]} Nc6 {[%emt 0:00:01]} 3. Bc4 {[%emt 0:00:02]} Nf6 {[%emt 0:00:03]} 4. d3 {[%emt 0:00:01]} Bc5 {[%emt 0:00:02]} 5. c3 {[%emt 0:00:04]} a6 {[%emt 0:00:10]} 6. O-O {[%emt 0:00:13]} d6 {[%emt 0:00:20]} 7. Bb3 {[%emt 0:00:08]} Ba7 {[%emt 0:00:30]} 8. Nbd2 {[%emt 0:00:10]} O-O {[%emt 0:00:02]} 9. h3 {[%emt 0:00:10]} Be6 {[%emt 0:00:12]} 10. Bxe6 {[%emt 0:00:16]} fxe6 {[%emt 0:00:02]} 11. b4 {[%emt 0:00:07]} Qe8 {[%emt 0:00:06]} 12. Nc4 {[%emt 0:00:17]} Nh5 {[%emt 0:00:40]} 13. a4 {[%emt 0:01:29]} Ne7 {[%emt 0:02:35]} 14. Be3 {[%emt 0:03:59]} Nf4 {[%emt 0:00:07]} 15. Bxa7 {[%emt 0:01:39]} Rxa7 {[%emt 0:00:23]} 16. g3 {[%emt 0:00:47]} Nh5 {[%emt 0:05:41]} 17. Ng5 {[%emt 0:02:09]} Rf6 {[%emt 0:00:10]} 18. Ne3 {[%emt 0:00:54]} Qg6 {[%emt 0:00:28]} 19. h4 {[%emt 0:01:05]} h6 {[%emt 0:00:09]} 20. Nf3 {[%emt 0:01:20]} Ra8 {[%emt 0:00:08]} 21. Nh2 {[%emt 0:00:10]} Raf8 {[%emt 0:00:17]} 22. Neg4 {[%emt 0:00:19]} R6f7 {[%emt 0:00:04]} 23. Qe2 {[%emt 0:00:07]} Kh8 {[%emt 0:00:51]} 24. b5 {[%emt 0:00:32]} a5 {[%emt 0:00:08]} 25. d4 {[%emt 0:00:05]} exd4 {[%emt 0:00:30]} 26. cxd4 {[%emt 0:00:02]} Ng8 {[%emt 0:00:01]} 27. Ra3 {[%emt 0:00:21]} Ngf6 {[%emt 0:00:21]} 28. Re3 {[%emt 0:00:08]} Nd7 {[%emt 0:00:19]} 29. Kh1 {[%emt 0:00:12]} Nb6 {[%emt 0:00:03]} 30. Qd1 {[%emt 0:00:19]} Nf6 {[%emt 0:00:25]} 31. Nxf6 {[%emt 0:00:09]} Rxf6 {[%emt 0:00:00]} 32. Qg4 {[%emt 0:00:06]} Qf7 {[%emt 0:00:20]} 33. f4 {[%emt 0:00:05]} e5 {[%emt 0:00:03]} 34. dxe5 {[%emt 0:00:07]} dxe5 {[%emt 0:00:01]} 35. f5 {[%emt 0:00:02]} Rd6 {[%emt 0:00:11]} 36. Nf3 {[%emt 0:00:03]} Qf6 {[%emt 0:00:01]} 37. Rc1 {[%emt 0:00:06]} Rf7 {[%emt 0:00:05]} 38. Rec3 {[%emt 0:00:03]} Rdd7 {[%emt 0:00:02]} 39. Qh5 {[%emt 0:00:12]} Rfe7 {[%emt 0:00:11]} 40. g4 {[%emt 0:00:05]} Qd6 {[%emt 0:00:56]} 41. g5 {[%emt 0:00:05]} Nxa4 {[%emt 0:00:00]} 42. f6 {[%emt 0:00:10]} Rf7 {[%emt 0:00:33]} 43. Rc4 {[%emt 0:00:03]} Nb2 {[%emt 0:00:38]} 44. fxg7+ {[%emt 0:00:07]} Rxg7 {[%emt 0:00:24]} 45. Rc5 {[%emt 0:00:05]} Nd3 {[%emt 0:00:02]} 46. Rd5 {[%emt 0:00:07]} Qe6 {[%emt 0:00:08]} 0-1

[Event "FIDE Online Olympiad Top Division 2020"]
[Site "Online"]
[Date "2020.08.22"]
[Round "?"]
[White "Tan, Zhongyi"]
[Black "Schulze, Lara"]
[Result "1/2-1/2"]
[ECO "E20"]
[WhiteElo "2278"]
[BlackElo "2301"]
[Annotator "ChessBase"]
[PlyCount "122"]
[EventDate "2020.08.21"]
[SourceTitle "playchess.com"]
[Source "ChessBase"]
[SourceQuality "1"]
[TimeControl "900+5"]

1. d4 {[%emt 0:00:05]} Nf6 {[%emt 0:00:03]} 2. c4 {[%emt 0:00:01]} e6 {[%emt 0:00:02]} 3. Nc3 {[%emt 0:00:01]} Bb4 {[%emt 0:00:01]} 4. f3 {[%emt 0:00:01]} c5 {[%emt 0:00:02]} 5. d5 {[%emt 0:00:02]} b5 {[%emt 0:00:12]} 6. e4 {[%emt 0:00:02]} d6 {[%emt 0:00:01]} 7. Nh3 {[%emt 0:00:02]} O-O {[%emt 0:01:00]} 8. Nf4 {[%emt 0:00:02]} e5 {[%emt 0:01:04]} 9. Nfe2 {[%emt 0:00:02]} bxc4 {[%emt 0:00:36]} 10. Ng3 {[%emt 0:00:23]} Nbd7 {[%emt 0:01:03]} 11. Be2 {[%emt 0:01:39]} Nb6 {[%emt 0:00:54]} 12. O-O {[%emt 0:00:09]} Re8 {[%emt 0:01:40]} 13. Bd2 {[%emt 0:00:12]} Nfd7 {[%emt 0:00:27]} 14. Nf5 {[%emt 0:00:06]} Nf8 {[%emt 0:00:06]} 15. Ne3 {[%emt 0:00:14]} Ng6 {[%emt 0:00:47]} 16. g3 {[%emt 0:00:20]} Ne7 {[%emt 0:01:27]} 17. Qc2 {[%emt 0:00:53]} Rf8 {[%emt 0:00:15]} 18. Nxc4 {[%emt 0:03:20]} f5 {[%emt 0:01:36]} 19. a3 {[%emt 0:00:11]} Bxc3 {[%emt 0:00:56]} 20. Qxc3 {[%emt 0:00:29]} Ba6 {[%emt 0:00:51]} 21. b3 {[%emt 0:00:30]} Nxc4 {[%emt 0:00:22]} 22. bxc4 {[%emt 0:00:02]} f4 {[%emt 0:00:48]} 23. Qa5 {[%emt 0:00:12]} Qc8 {[%emt 0:00:38]} 24. Kg2 {[%emt 0:00:06]} g5 {[%emt 0:00:44]} 25. gxf4 {[%emt 0:00:46]} gxf4 {[%emt 0:00:38]} 26. Kh1 {[%emt 0:00:03]} Kh8 {[%emt 0:00:14]} 27. Rg1 {[%emt 0:00:02]} Rb8 {[%emt 0:00:04]} 28. Rab1 {[%emt 0:01:12]} Rxb1 {[%emt 0:00:04]} 29. Rxb1 {[%emt 0:00:02]} Rg8 {[%emt 0:00:02]} 30. Rg1 {[%emt 0:00:08]} Rxg1+ {[%emt 0:00:17]} 31. Kxg1 {[%emt 0:00:01]} Ng6 {[%emt 0:00:01]} 32. Be1 {[%emt 0:00:07]} Qb7 {[%emt 0:00:26]} 33. Bf1 {[%emt 0:00:18]} Kg7 {[%emt 0:00:03]} 34. Bf2 {[%emt 0:00:37]} Qb6 {[%emt 0:00:02]} 35. Qxb6 {[%emt 0:00:10]} axb6 {[%emt 0:00:00]} 36. Be2 {[%emt 0:00:12]} Bc8 {[%emt 0:00:03]} 37. Be1 {[%emt 0:00:23]} Bd7 {[%emt 0:00:04]} 38. Bd1 {[%emt 0:00:03]} Kf6 {[%emt 0:00:05]} 39. a4 {[%emt 0:00:18]} Kg5 {[%emt 0:00:05]} 40. a5 {[%emt 0:00:02]} bxa5 {[%emt 0:00:02]} 41. Bxa5 {[%emt 0:00:01]} Kf6 {[%emt 0:00:02]} 42. Bd8+ {[%emt 0:00:08]} Kf7 {[%emt 0:00:04]} 43. Kf1 {[%emt 0:00:48]} h6 {[%emt 0:00:15]} 44. Ke1 {[%emt 0:00:07]} Ke8 {[%emt 0:00:04]} 45. Bc7 {[%emt 0:00:04]} Ke7 {[%emt 0:00:02]} 46. Kd2 {[%emt 0:00:19]} Nh4 {[%emt 0:00:09]} 47. Ke2 {[%emt 0:00:20]} Ng2 {[%emt 0:00:10]} 48. Bb3 {[%emt 0:00:07]} Bc8 {[%emt 0:00:06]} 49. Ba5 {[%emt 0:00:14]} Ba6 {[%emt 0:00:07]} 50. Bd2 {[%emt 0:00:05]} Nh4 {[%emt 0:00:03]} 51. Be1 {[%emt 0:00:04]} Ng6 {[%emt 0:00:04]} 52. Kd3 {[%emt 0:00:07]} Bc8 {[%emt 0:00:05]} 53. Ba4 {[%emt 0:00:09]} Bh3 {[%emt 0:00:04]} 54. Ke2 {[%emt 0:00:04]} Bc8 {[%emt 0:00:04]} 55. Ba5 {[%emt 0:00:23]} Bh3 {[%emt 0:00:04]} 56. Be1 {[%emt 0:00:17]} Bc8 {[%emt 0:00:03]} 57. Bb5 {[%emt 0:00:28]} Bd7 {[%emt 0:00:11]} 58. Kd3 {[%emt 0:01:26]} Bh3 {[%emt 0:00:05]} 59. Ke2 {[%emt 0:00:02]} Bd7 {[%emt 0:00:02]} 60. Kd3 {[%emt 0:00:01]} Bh3 {[%emt 0:00:02]} 61. Ke2 {[%emt 0:00:02]} Bd7 {[%emt 0:00:03]} 1/2-1/2

[Event "FIDE Online Olympiad Top Division 2020"]
[Site "Online"]
[Date "2020.08.24"]
[Round "?"]
[White "Schulze, Lara"]
[Black "Baymuratova, Sevara"]
[Result "0-1"]
[ECO "B56"]
[WhiteElo "2276"]
[BlackElo "2306"]
[Annotator "ChessBase"]
[PlyCount "110"]
[EventDate "2020.08.21"]
[TimeControl "900+5"]

1. e4 {[%emt 0:00:07]} c5 {[%emt 0:00:03]} 2. Nc3 {[%emt 0:00:04]} Nc6 {[%emt 0:00:03]} 3. Nf3 {[%emt 0:00:02]} d6 {[%emt 0:00:20]} 4. d4 {[%emt 0:00:03]} cxd4 {[%emt 0:00:02]} 5. Nxd4 {[%emt 0:00:00]} Nf6 {[%emt 0:00:01]} 6. f3 {[%emt 0:00:03]} e5 {[%emt 0:00:05]} 7. Nb3 {[%emt 0:00:02]} Be7 {[%emt 0:00:04]} 8. Be3 {[%emt 0:00:03]} O-O {[%emt 0:00:03]} 9. Qd2 {[%emt 0:00:24]} a5 {[%emt 0:00:08]} 10. Bb5 {[%emt 0:00:03]} Be6 {[%emt 0:00:04]} 11. Nd5 {[%emt 0:01:49]} Bxd5 {[%emt 0:01:00]} 12. exd5 {[%emt 0:00:06]} Nb4 {[%emt 0:00:03]} 13. c4 {[%emt 0:01:06]} b6 {[%emt 0:00:39]} 14. O-O {[%emt 0:00:24]} Na6 {[%emt 0:00:09]} 15. Bc6 {[%emt 0:00:59]} Rb8 {[%emt 0:00:10]} 16. Nc1 {[%emt 0:00:09]} Nc5 {[%emt 0:00:25]} 17. b3 {[%emt 0:00:55]} Nh5 {[%emt 0:00:12]} 18. a3 {[%emt 0:00:26]} f5 {[%emt 0:02:14]} 19. b4 {[%emt 0:00:11]} axb4 {[%emt 0:00:10]} 20. axb4 {[%emt 0:00:00]} Nd7 {[%emt 0:00:03]} 21. Ne2 {[%emt 0:00:34]} f4 {[%emt 0:00:14]} 22. Bf2 {[%emt 0:00:03]} Kh8 {[%emt 0:01:24]} 23. Nc3 {[%emt 0:03:11]} Ndf6 {[%emt 0:00:48]} 24. Rfd1 {[%emt 0:00:40]} g6 {[%emt 0:00:47]} 25. c5 {[%emt 0:01:42]} bxc5 {[%emt 0:00:05]} 26. bxc5 {[%emt 0:00:02]} Ng7 {[%emt 0:00:03]} 27. Nb5 {[%emt 0:01:04]} Nf5 {[%emt 0:00:11]} 28. Ra7 {[%emt 0:00:26]} e4 {[%emt 0:02:33]} 29. fxe4 {[%emt 0:00:41]} Nxe4 {[%emt 0:00:02]} 30. Qd4+ {[%emt 0:00:02]} Nxd4 {[%emt 0:00:03]} 31. Bxd4+ {[%emt 0:00:11]} Bf6 {[%emt 0:00:03]} 32. Rd7 {[%emt 0:00:24]} Bxd4+ {[%emt 0:00:21]} 33. Rxd4 {[%emt 0:00:20]} Qa5 {[%emt 0:00:22]} 34. Rxe4 {[%emt 0:00:24]} Rxb5 {[%emt 0:00:06]} 35. Bxb5 {[%emt 0:00:05]} Qxb5 {[%emt 0:00:02]} 36. Ree7 {[%emt 0:00:22]} Qxc5+ {[%emt 0:00:02]} 37. Kf1 {[%emt 0:00:08]} Qc1+ {[%emt 0:00:18]} 38. Kf2 {[%emt 0:00:06]} Qc2+ {[%emt 0:00:02]} 39. Kf1 {[%emt 0:00:12]} g5 {[%emt 0:00:03]} 40. Rc7 {[%emt 0:00:18]} Qd3+ {[%emt 0:00:04]} 41. Kf2 {[%emt 0:00:09]} f3 {[%emt 0:00:02]} 42. gxf3 {[%emt 0:00:12]} Rxf3+ {[%emt 0:00:04]} 43. Kg2 {[%emt 0:00:03]} Rf8 {[%emt 0:00:05]} 44. h3 {[%emt 0:00:05]} Qxd5+ {[%emt 0:00:03]} 45. Kg3 {[%emt 0:00:02]} Qf3+ {[%emt 0:00:03]} 46. Kh2 {[%emt 0:00:02]} Qf2+ {[%emt 0:00:02]} 47. Kh1 {[%emt 0:00:01]} Qf1+ {[%emt 0:00:04]} 48. Kh2 {[%emt 0:00:02]} Qf4+ {[%emt 0:00:04]} 49. Kh1 {[%emt 0:00:03]} Qf5 {[%emt 0:00:03]} 50. Kh2 {[%emt 0:00:02]} Rb8 {[%emt 0:00:06]} 51. Re2 {[%emt 0:00:12]} d5 {[%emt 0:00:03]} 52. Rc5 {[%emt 0:00:08]} Qf4+ {[%emt 0:00:03]} 53. Kg2 {[%emt 0:00:02]} d4 {[%emt 0:00:04]} 54. Rf2 {[%emt 0:00:16]} Qe4+ {[%emt 0:00:02]} 55. Kh2 {[%emt 0:00:02]} d3 {[%emt 0:00:03]} 0-1